bitfinex-derivatives/quotes_ETHF0:USTF0_20250824
["timestamp","ask_amount","ask_price","bid_price","bid_amount"]
[1756039744594,2.24696661,4753.1,4753.0,1.61493169]
[1756039744991,2.24696661,4753.1,4753.0,0.26233169]
[1756039745496,1.73111,4752.8,4752.7,1.1244]
[1756039745694,2.24699661,4752.8,4752.7,1.38681619]
[1756039746298,1.82608661,4752.8,4752.7,1.38681619]
[1756039747699,1.49908661,4752.8,4752.7,1.62701619]
[1756039748097,0.81408661,4752.8,4752.7,1.62701619]
[1756039748300,0.51588661,4752.8,4752.7,1.62701619]
[1756039748599,1.3708,4753.0,4752.9,1.3077]
[1756039748795,1.88718471,4753.0,4752.9,1.57011619]
[1756039750104,1.88718471,4753.0,4752.9,1.0675]
[1756039750297,1.88718471,4753.0,4752.9,0.918]
[1756039750497,1.88718471,4753.0,4752.9,0.6958]
[1756039751093,0.594,4752.6,4752.5,1.1582]
[1756039751295,21.47310959,4752.6,4752.5,0.2642034]
[1756039751495,0.95785,4752.3,4752.2,0.3665]
[1756039751698,2.30816137,4752.3,4752.2,0.26424108]
[1756039751902,1.3708,4752.1,4752.0,0.56647]
[1756039752097,1.3708,4751.9,4751.2,0.7917]
[1756039752302,1.3708,4751.9,4750.7,1.05272]
[1756039752303,1.3708,4751.6,4751.5,1.72872]
[1756039752495,1.3708,4751.6,4751.5,1.99304362]
[1756039753103,1.88681635,4751.6,4751.5,1.72872]
[1756039753995,1.3708,4751.6,4751.5,1.72872]
[1756039756097,1.3708,4751.6,4751.5,0.8453]
[1756039756298,1.3708,4751.6,4751.5,0.1455]
[1756039757605,1.3708,4751.6,4751.5,0.6958]
[1756039757805,1.3708,4751.6,4751.5,1.3077]
[1756039759704,0.5318,4751.6,4751.5,1.3077]
[1756039759906,0.2957,4751.6,4751.5,1.3077]
[1756039760603,0.7717,4751.6,4751.5,1.3077]
[1756039760805,1.3708,4751.6,4751.5,1.3077]
[1756039761005,1.1309,4752.2,4752.1,0.93697]
[1756039761209,1.3708,4752.2,4752.1,1.72867]
[1756039761405,1.0129,4752.2,4752.1,1.22867]
[1756039761605,0.7717,4752.2,4752.1,1.59917]
[1756039762003,1.0129,4752.2,4752.1,1.59917]
[1756039762203,1.3708,4752.2,4752.1,1.59917]
[1756039771018,1.3708,4752.2,4752.1,0.42097]
[1756039771317,1.3708,4752.2,4752.1,1.45057]
[1756039771708,1.3708,4752.2,4752.1,1.67277]
[1756039771909,1.0129,4752.2,4752.1,1.67277]
[1756039772316,1.3708,4752.2,4752.1,1.67277]
[1756039773316,1.3708,4752.2,4752.1,1.11677]
[1756039774220,1.3708,4752.2,4752.1,1.38085309]
[1756039775118,1.3708,4752.2,4752.1,1.93685309]
[1756039775320,1.3708,4752.2,4752.1,1.38085309]
[1756039776018,1.3708,4752.2,4752.1,1.71465309]
[1756039776216,1.3708,4752.2,4752.1,1.93685309]
[1756039777524,1.3708,4752.2,4752.1,1.71465309]
[1756039777725,1.88712892,4752.2,4752.1,1.71465309]
[1756039778022,1.88712707,4752.2,4752.1,1.71465309]
[1756039779024,1.90812707,4752.2,4752.1,0.26408309]
[1756039779220,0.5467,4751.6,4751.5,0.42101]
[1756039779419,1.3358,4751.6,4751.5,0.68536729]
[1756039779618,1.3358,4751.6,4751.5,0.26435729]
[1756039779921,0.3111,4751.0,4750.7,0.76599]
[1756039780120,0.7891,4750.9,4750.8,1.03042271]
[1756039780324,1.3358,4750.9,4750.8,1.57602271]
[1756039780528,1.3358,4750.9,4750.8,1.98642271]
[1756039780728,1.3358,4750.9,4750.8,1.72198]
[1756039782021,0.3331,4751.3,4751.2,0.42105]
[1756039782221,19.167,4751.5,4751.4,0.42103]
[1756039782528,0.7671,4752.0,4751.9,1.72188]
[1756039782732,1.8522579,4752.0,4751.9,1.72188]
[1756039783628,1.2835579,4752.0,4751.9,1.72188]
[1756039783931,0.5164579,4752.0,4751.9,1.72188]
[1756039784230,0.7357579,4752.0,4751.9,1.72188]
[1756039784433,0.42099,4751.9,4751.5,0.42102]
[1756039784730,1.3358,4751.6,4751.5,0.42102]
[1756039784923,1.8522579,4751.6,4751.5,0.80662]
[1756039785124,1.8522579,4751.6,4751.5,1.15152]
[1756039785328,1.8522579,4751.6,4751.5,1.49612]
[1756039785629,0.5467,4752.3,4752.2,0.80655]
[1756039785927,1.85226432,4752.3,4752.2,1.15145]
[1756039786434,1.85226432,4752.3,4752.2,1.49605]
[1756039786730,1.85226432,4752.3,4752.2,1.72185]
[1756039787129,1.51916432,4752.3,4752.2,1.72185]
[1756039788123,0.456,4752.6,4752.5,0.80653]
[1756039788331,0.456,4752.6,4752.5,1.72183]
[1756039788536,0.97238256,4752.6,4752.5,1.72183]
[1756039789223,0.456,4752.6,4752.5,1.72183]
[1756039789632,0.6078,4752.6,4752.5,1.72183]
[1756039790238,20.5028,4753.1,4753.0,1.31139]
[1756039790424,21.01900927,4753.1,4753.0,0.80649]
[1756039792526,21.01900927,4753.1,4753.0,1.15109]
[1756039792731,21.01900927,4753.1,4753.0,0.42089]
[1756039793134,20.65078927,4753.1,4752.8,0.4209]
[1756039793332,1.3358,4752.9,4752.8,0.4209]
[1756039794937,1.3358,4752.9,4752.8,1.1514]
[1756039795238,1.3358,4752.9,4752.8,1.3114]
[1756039795438,1.3358,4752.9,4752.8,1.496]
[1756039795939,1.3358,4752.9,4752.8,1.7218]
[1756039796443,0.456,4752.9,4752.8,1.7218]
[1756039796830,0.6078,4752.9,4752.8,1.7218]
[1756039797034,1.3358,4752.9,4752.8,1.3114]
[1756039797230,1.3358,4752.9,4752.8,0.8065]
[1756039798040,1.3358,4752.9,4752.8,0.4209]
[1756039799642,1.3358,4752.9,4752.8,0.8065]
[1756039799837,1.3358,4752.9,4752.8,1.1514]
[1756039800343,1.3358,4752.9,4752.8,1.496]
[1756039800643,1.3358,4752.9,4752.8,1.7218]
[1756039801442,1.3358,4752.9,4752.8,0.8065]
[1756039801643,1.3358,4752.9,4752.8,0.4209]
[1756039802038,1.3358,4752.9,4752.8,0.5697]
[1756039802343,1.3358,4752.9,4752.8,0.9146]
[1756039802744,1.3358,4752.9,4752.8,1.496]
[1756039803848,1.3358,4752.9,4752.8,1.3114]
[1756039804037,1.3358,4752.9,4752.8,1.1514]
[1756039804234,1.3358,4752.9,4752.8,0.4209]
[1756039804441,0.5467,4751.9,4751.8,0.4937]
[1756039804638,1.3358,4751.9,4751.8,0.91469]
[1756039805147,1.3358,4751.9,4751.8,1.15149]
[1756039805644,1.3358,4751.9,4751.8,1.31149]
[1756039805839,1.3358,4751.9,4751.8,1.49609]
[1756039808048,1.3358,4751.9,4751.8,1.15149]
[1756039809648,1.3358,4751.9,4751.8,1.49619]
[1756039809842,1.3358,4751.9,4751.8,1.72589]
[1756039810848,1.3499,4751.9,4751.8,1.72589]
[1756039811244,1.3499,4751.9,4751.8,1.49619]
[1756039811648,1.3499,4751.9,4751.8,1.72589]
[1756039812343,1.0027,4751.9,4751.8,1.72589]
[1756039812849,0.7671,4751.9,4751.8,1.72589]
[1756039813246,0.456,4751.9,4751.8,1.72589]
[1756039813447,1.351,4752.2,4752.1,1.72127]
[1756039813642,0.7808,4752.5,4752.4,1.72124]
[1756039813844,0.3472,4752.9,4752.8,1.72121]
[1756039813845,0.8888,4752.9,4752.8,1.72121]
[1756039814439,0.7808,4752.9,4752.8,1.72121]
[1756039814651,1.351,4752.9,4752.8,1.72121]
[1756039819450,0.6222,4752.9,4752.8,1.72121]
[1756039819755,1.0038,4753.3,4753.2,1.72117]
[1756039819953,1.52249841,4753.3,4753.2,1.72117]
[1756039820253,1.351,4754.3,4754.2,0.42078]
[1756039820455,1.86953608,4754.3,4754.2,0.92548]
[1756039820646,1.86953608,4754.3,4754.2,1.14668]
[1756039820847,0.5416,4754.0,4753.9,0.5394]
[1756039821049,1.351,4754.0,4753.9,0.379]
[1756039821856,1.351,4754.0,4753.9,0.8863]
[1756039822045,1.351,4754.0,4753.9,1.3003]
[1756039822651,1.351,4754.0,4753.9,0.8863]
[1756039822856,0.5416,4754.0,4753.8,0.42081]
[1756039823153,1.351,4753.9,4753.8,1.14671]
[1756039823752,1.351,4753.9,4753.8,1.49141]
[1756039823953,1.351,4754.3,4754.2,1.30708]
[1756039824149,1.86899334,4754.3,4754.2,1.72108]
[1756039826554,1.351,4754.3,4754.2,1.72108]
[1756039829059,1.351,4754.3,4754.2,0.76768]
[1756039829562,1.351,4754.3,4754.2,0.92548]
[1756039829860,1.351,4754.3,4754.2,1.14668]
[1756039830354,1.351,4754.3,4754.2,1.30708]
[1756039830560,1.351,4754.3,4754.2,1.49138]
[1756039831555,1.351,4754.3,4754.2,1.30708]
[1756039832163,1.351,4754.3,4754.2,0.379]
[1756039832460,1.351,4754.0,4753.9,0.4208]
[1756039833060,1.351,4754.0,4753.9,1.4916]
[1756039833456,1.351,4754.0,4753.9,1.7213]
[1756039834264,1.351,4754.0,4753.9,1.4916]
[1756039834457,1.351,4754.0,4753.9,0.4208]
[1756039837160,1.351,4754.0,4753.9,1.7204]
[1756039837556,1.351,4754.0,4753.9,1.4886]
[1756039837757,1.351,4754.0,4753.9,1.1458]
[1756039838567,1.351,4754.0,4753.9,1.7204]
[1756039839472,1.351,4754.0,4753.9,0.4208]
[1756039841669,0.3341,4754.5,4754.0,1.05199]
[1756039841972,0.5393,4754.5,4754.4,1.71606]
[1756039842160,1.38846833,4754.5,4754.4,1.71606]
[1756039842355,1.84746833,4754.5,4754.4,1.48426]
[1756039842560,1.84746833,4754.5,4754.4,1.29966]
[1756039842864,1.84746833,4754.5,4754.4,1.14146]
[1756039844062,1.3324,4754.5,4754.4,1.14146]
[1756039844368,1.84802509,4754.5,4754.4,1.14146]
[1756039845565,1.84802509,4754.5,4754.4,0.80106]
[1756039848167,1.84802509,4754.5,4754.4,0.57426]
[1756039850269,1.84802509,4754.5,4754.4,1.71606]
[1756039850469,1.84802509,4754.5,4754.4,1.48426]
[1756039850662,1.84802509,4754.5,4754.4,1.29966]
[1756039850969,1.84802509,4754.5,4754.4,1.14146]
[1756039852069,1.84802509,4754.5,4754.4,1.48426]
[1756039852769,1.84802509,4754.5,4754.4,1.14146]
[1756039856069,1.3324,4754.2,4754.1,0.76119]
[1756039856269,0.6048,4754.2,4754.1,1.71609]
[1756039856662,0.7643,4754.2,4754.1,1.71609]
[1756039856859,1.0984,4754.2,4754.1,1.71609]
[1756039857059,1.3324,4754.2,4754.1,1.71609]
[1756039858172,1.3324,4754.2,4754.1,1.48429]
[1756039859072,1.3324,4754.2,4754.1,1.71609]
[1756039860072,1.3324,4754.2,4754.1,0.80109]
[1756039860270,1.3324,4754.2,4754.1,1.48429]
[1756039861173,0.3783,4753.9,4753.8,0.3404]
[1756039861476,1.3324,4753.4,4753.3,0.42086]
[1756039861662,1.3324,4753.3,4753.2,0.3404]
[1756039863276,1.3324,4753.3,4753.2,0.7207]
[1756039863473,1.3324,4753.3,4753.2,0.9053]
[1756039863670,1.3324,4753.3,4753.2,1.0635]
[1756039863873,1.05187,4754.7,4753.1,0.42088]
[1756039863874,20.1493,4753.9,4753.8,0.7703]
[1756039864075,0.51634055,4753.9,4753.8,1.71612]
[1756039864475,0.7581,4754.3,4754.2,0.95928]
[1756039864675,1.8486904,4754.3,4754.2,1.71608]
[1756039865574,1.3324,4754.3,4754.2,1.71608]
[1756039866373,0.9983,4754.3,4754.2,1.71608]
[1756039867081,1.3401,4754.6,4754.5,0.94806]
[1756039867282,1.3401,4754.6,4754.5,1.70356]
[1756039867283,1.85634236,4754.6,4754.5,1.70356]
[1756039868279,1.52224236,4754.6,4754.5,1.70356]
[1756039868776,0.51624236,4754.6,4754.5,1.70356]
[1756039869081,1.3454,4754.9,4754.8,1.70353]
[1756039869278,1.85773506,4754.9,4754.8,1.70353]
[1756039870471,1.85773506,4754.9,4754.8,1.2828]
[1756039870671,1.85773506,4754.9,4754.8,1.0584]
[1756039870874,1.85773506,4754.9,4754.8,0.8743]
[1756039871072,1.85773506,4754.9,4754.8,1.0584]
[1756039871276,1.85773506,4754.9,4754.8,1.2828]
[1756039872181,1.3454,4754.9,4754.8,1.2828]
[1756039872680,1.3454,4754.9,4754.8,1.0584]
[1756039874691,1.3454,4754.9,4754.8,1.2828]
[1756039876995,0.7236,4754.6,4754.3,0.1841]
[1756039877191,0.42074,4754.7,4754.4,0.42076]
[1756039877192,1.1109,4754.5,4754.4,0.42076]
[1756039877501,1.1109,4754.5,4753.7,0.2244]
[1756039877502,0.5992,4754.4,4753.7,0.2244]
[1756039877796,0.5327,4753.8,4753.4,0.1841]
[1756039877991,1.3454,4753.5,4753.4,0.42085]
[1756039878395,1.3454,4753.5,4753.4,1.15015]
[1756039879196,0.5327,4753.2,4753.1,0.9134]
[1756039879394,1.3454,4753.2,4753.1,0.7293]
[1756039879696,1.3454,4753.2,4753.1,0.3823]
[1756039880490,0.8127,4753.1,4753.0,0.42088]
[1756039880791,1.3454,4753.1,4753.0,0.42088]
[1756039881491,1.3454,4752.8,4752.7,0.1563]
[1756039882096,1.3454,4752.8,4752.7,0.7293]
[1756039882391,1.3454,4752.8,4752.7,0.8743]
[1756039882597,1.3454,4752.8,4752.7,1.0584]
[1756039882899,1.3454,4752.8,4752.7,0.7293]
[1756039883093,1.3454,4752.8,4752.7,1.2828]
[1756039883293,0.8721,4753.2,4753.1,0.94818]
[1756039883596,0.8721,4753.2,4753.1,1.70368]
[1756039883795,1.3454,4753.2,4753.1,1.70368]
[1756039884394,1.3454,4753.2,4753.1,0.8743]
[1756039884787,1.3454,4753.2,4753.1,0.7293]
[1756039885597,1.3454,4753.2,4753.1,0.3823]
[1756039885998,1.3454,4753.2,4753.1,0.226]
[1756039886196,1.3454,4753.2,4753.1,0.3823]
[1756039886497,1.3454,4753.2,4753.1,0.7293]
[1756039886999,0.8127,4753.1,4753.0,0.42088]
[1756039887193,1.3454,4753.1,4753.0,1.15018]
[1756039887900,1.3454,4753.1,4753.0,0.7293]
[1756039889294,1.3454,4753.1,4753.0,1.0584]
[1756039889491,1.3454,4753.1,4753.0,0.8743]
[1756039890302,0.7774,4753.1,4753.0,1.2828]
[1756039890599,0.7774,4753.1,4752.9,0.42089]
[1756039890600,1.3454,4753.6,4753.5,1.70364]
[1756039892500,0.7672,4753.9,4753.8,1.70362]
[1756039892699,0.5117705,4753.9,4753.8,1.70362]
[1756039892905,0.3394,4754.1,4754.0,0.9481]
[1756039893199,1.3454,4754.1,4754.0,1.7036]
[1756039894892,0.3799,4754.5,4754.4,1.70417]
[1756039895096,1.3454,4755.2,4755.1,0.5273]
[1756039895296,1.3454,4755.2,4755.1,1.059]
[1756039895297,1.85727863,4755.2,4755.1,1.059]
[1756039895604,1.85727863,4755.2,4755.1,0.1563]
[1756039896102,1.85727863,4755.2,4755.0,0.42071]
[1756039896301,1.85727863,4755.1,4755.0,0.42071]
[1756039896494,1.85727863,4755.1,4755.0,0.80301]
[1756039896694,1.85727863,4755.1,4755.0,1.15001]
[1756039896891,1.85727863,4755.1,4755.0,0.57701]
[1756039897109,1.85727863,4755.1,4755.0,0.42071]
[1756039897702,1.85727863,4755.1,4755.0,0.77001]
[1756039897900,1.85727863,4755.1,4755.0,1.15181]
[1756039899004,1.85727863,4755.1,4755.0,1.70091]
[1756039899195,1.3454,4755.1,4755.0,1.70091]
[1756039900002,1.3454,4755.1,4755.0,1.48351]
[1756039902413,1.3454,4755.1,4755.0,1.70091]
[1756039907111,0.7774,4755.1,4755.0,1.70091]
[1756039907401,1.3191,4755.4,4755.3,1.2802]
[1756039907708,1.83265238,4755.4,4755.3,1.0628]
[1756039908409,1.83265238,4755.4,4755.3,1.48349]
[1756039908707,1.83265238,4755.4,4755.3,1.70089]
[1756039909107,1.83265238,4755.4,4755.3,1.48349]
[1756039912403,1.83265238,4755.4,4755.3,1.0628]
[1756039912803,1.83265238,4755.4,4755.3,1.2802]
[1756039913303,0.51355238,4755.4,4755.3,1.2802]
[1756039913506,1.73973,4755.9,4755.8,1.2802]
[1756039913701,2.25367208,4755.9,4755.8,1.2802]
[1756039915106,1.83304208,4755.9,4755.8,1.2802]
[1756039915700,1.48964208,4755.9,4755.8,1.2802]
[1756039916501,1.83304208,4755.9,4755.8,1.2802]
[1756039917508,1.3191,4755.9,4755.8,1.2802]
[1756039922808,1.3191,4755.9,4755.8,1.0628]
[1756039923010,1.3191,4755.3,4755.2,0.8788]
[1756039923215,1.3191,4755.3,4755.2,0.26233923]
[1756039923912,1.83276471,4755.3,4755.2,0.26233923]
[1756039924115,1.83276471,4755.3,4755.2,0.61163923]
[1756039924513,1.83276471,4755.3,4755.2,0.76433923]
[1756039925419,1.48936471,4755.3,4755.2,1.54253923]
[1756039925618,1.25906471,4755.3,4755.2,1.54253923]
[1756039926212,1.60246471,4755.3,4755.2,1.54253923]
[1756039926412,1.83276471,4755.3,4755.2,1.54253923]
[1756039926814,0.3603,4755.8,4755.2,1.31407923]
[1756039927007,0.9016,4755.8,4755.7,1.0437]
[1756039927212,0.9016,4755.8,4755.7,1.2737]
[1756039927213,1.41553354,4755.8,4755.7,1.2737]
[1756039927410,1.88273354,4755.8,4755.7,1.2737]
[1756039928411,1.88273354,4755.8,4755.7,1.69435]
[1756039930222,1.88273354,4755.8,4755.7,1.95701353]
[1756039931822,1.52243354,4755.8,4755.7,1.95701353]
[1756039932522,1.88273354,4755.8,4755.7,1.95701353]
[1756039933919,1.3688,4755.8,4755.7,1.95701353]
[1756039934719,0.6182,4755.8,4755.7,1.95701353]
[1756039935324,0.7789,4755.8,4755.7,1.95701353]
[1756039935518,1.1392,4755.8,4755.7,1.95701353]
[1756039936013,0.4672,4755.8,4755.7,1.95701353]
[1756039936220,0.7789,4755.8,4755.7,1.95701353]
[1756039936419,1.3688,4755.8,4755.7,1.95701353]
[1756039938018,1.3688,4755.8,4755.7,1.72701353]
[1756039938423,1.3688,4755.8,4755.7,1.72594379]
[1756039939425,1.3688,4755.8,4755.7,1.95594379]
[1756039941629,1.3688,4755.8,4755.7,0.68224379]
[1756039942024,1.3688,4755.8,4755.7,1.00854379]
[1756039942828,1.3688,4755.8,4755.7,1.15424379]
[1756039943030,1.3688,4755.8,4755.7,1.39194379]
[1756039943228,1.3688,4755.8,4755.7,1.57564379]
[1756039943529,1.3688,4755.8,4755.7,1.95594379]
[1756039943724,1.3688,4755.8,4755.7,1.72594379]
[1756039944231,1.3688,4755.8,4755.7,1.95594379]
[1756039945431,1.3688,4755.8,4755.7,1.54224379]
[1756039945829,1.3688,4755.8,4755.7,1.39194379]
[1756039946628,1.3688,4755.8,4755.7,1.72594379]
[1756039947133,1.3688,4755.8,4755.7,1.95594379]
[1756039947325,1.0085,4755.8,4755.7,1.95594379]
[1756039947533,1.3688,4755.8,4755.7,1.95594379]
[1756039948235,1.3688,4755.8,4755.7,1.69435]
[1756039948532,1.3688,4755.8,4755.7,1.95622086]
[1756039949231,1.3688,4755.8,4755.7,1.95622007]
[1756039950238,1.3688,4755.8,4755.7,1.72622007]
[1756039951438,1.3688,4755.8,4755.7,1.95622007]
[1756039953649,1.3688,4755.8,4755.7,1.69435]
[1756039953848,1.3688,4755.8,4755.7,1.95620648]
[1756039954546,0.6279,4755.8,4755.7,1.95620648]
[1756039954749,1.1392,4755.8,4755.7,1.95620648]
[1756039956950,0.42059,4756.4,4755.7,1.95620648]
[1756039956951,0.857,4756.2,4756.1,0.95611]
[1756039957153,1.3716833,4756.2,4756.1,1.74426648]
[1756039957546,1.8356833,4756.2,4756.1,1.97356648]
[1756039958451,1.8356833,4756.2,4756.1,1.71171]
[1756039958652,1.8356833,4756.2,4756.1,1.97377558]
[1756039958849,1.8356833,4756.2,4756.1,1.74447558]
[1756039959051,1.8356833,4756.2,4756.1,1.56057558]
[1756039959354,1.8356833,4756.2,4756.1,1.56061422]
[1756039961653,1.8356833,4756.2,4756.1,1.74451422]
[1756039962261,1.8356833,4756.2,4756.1,1.97381422]
[1756039964364,1.1257833,4756.2,4756.1,1.97381422]
[1756039964560,0.7471833,4756.2,4756.1,1.97381422]
[1756039965060,1.321,4756.5,4756.4,1.71169]
[1756039965255,1.83692669,4756.5,4756.4,1.97274851]
[1756039966056,0.51592669,4756.5,4756.4,1.97274851]
[1756039966260,1.321,4756.9,4756.8,0.95605]
[1756039966460,1.8364819,4756.9,4756.8,1.97270851]
[1756039967262,1.4918819,4756.9,4756.8,1.97270851]
[1756039967462,0.9764,4756.9,4756.8,1.97270851]
[1756039967657,1.321,4756.9,4756.8,1.97270851]
[1756039968167,0.6088,4756.9,4756.8,1.71165]
[1756039968367,0.6088,4756.9,4756.8,1.97227608]
[1756039968368,0.464,4756.9,4756.8,1.97227608]
[1756039969267,0.464,4756.9,4756.8,1.97216616]
[1756039970966,1.321,4757.2,4757.1,0.95603]
[1756039971162,1.321,4757.2,4757.1,1.71163]
[1756039973963,1.83542567,4757.2,4757.1,1.71163]
[1756039975368,1.321,4757.2,4757.1,1.71163]
[1756039975965,1.83532545,4757.2,4757.1,1.71163]
[1756039976265,1.321,4757.2,4757.1,1.71163]
[1756039976764,0.9764,4757.2,4757.1,1.71163]
[1756039977777,1.321,4757.2,4757.1,1.71163]
[1756039979061,0.9764,4757.2,4757.1,1.71163]
[1756039979261,0.464,4757.2,4757.1,1.97166059]
[1756039980671,0.6365,4757.5,4757.4,0.4205]
[1756039980872,0.9557,4757.5,4757.4,1.7116]
[1756039981066,0.5771,4757.5,4757.4,1.7116]
[1756039981372,1.321,4757.5,4757.4,1.7116]
[1756039982370,1.321,4757.5,4757.4,0.7551]
[1756039982667,0.3676,4757.4,4757.3,0.80531]
[1756039982875,0.5124,4757.4,4757.3,1.14771]
[1756039983073,0.5124,4757.4,4757.3,1.48231]
[1756039983267,1.0895,4757.4,4757.3,0.42051]
[1756039983467,0.5124,4757.0,4756.9,0.3424]
[1756039983672,1.321,4757.0,4756.9,1.02286788]
[1756039983862,1.321,4757.0,4756.9,1.02286793]
[1756039985466,1.321,4757.0,4756.9,0.68046793]
[1756039985670,1.321,4756.6,4756.4,0.42058]
[1756039985969,1.321,4756.0,4755.9,0.42063]
[1756039986169,1.321,4756.0,4755.9,0.26007238]
[1756039986471,1.321,4755.8,4755.7,0.42065]
[1756039986965,0.5124,4755.8,4755.5,0.42066]
[1756039987175,1.3567,4755.6,4755.5,0.42066]
[1756039987476,1.3567,4755.6,4755.5,0.26013894]
[1756039987677,0.7766,4755.3,4755.2,0.77639]
[1756039987975,1.3567,4755.3,4755.2,1.41757048]
[1756039988477,1.3567,4755.3,4755.2,1.06187048]
[1756039988678,1.3567,4755.3,4755.2,0.83067048]
[1756039988976,1.3567,4755.3,4755.2,0.68087048]
[1756039989177,1.3567,4755.3,4755.2,0.26018048]
[1756039989372,1.3567,4755.3,4755.0,0.42071]
[1756039989570,1.3567,4755.2,4755.1,0.26016047]
[1756039989965,0.8158,4755.1,4754.9,0.3557]
[1756039990175,1.3567,4755.0,4754.9,0.3557]
[1756039990374,1.3567,4755.0,4754.9,0.26017685]
[1756039990976,1.3567,4755.0,4754.7,0.42073]
[1756039991176,0.42071,4755.1,4754.7,0.77643]
[1756039991177,1.3567,4754.8,4754.7,0.77643]
[1756039991479,1.3567,4754.6,4754.5,0.42075]
[1756039991674,0.5409,4754.3,4754.2,0.77648]
[1756039991869,1.3567,4754.3,4754.2,1.15748]
[1756039992177,1.3567,4754.3,4754.2,1.72088]
[1756039996675,1.3567,4754.7,4754.6,0.95625]
[1756039996977,1.3567,4754.7,4754.6,1.72085]
[1756040002080,1.3567,4754.7,4754.6,1.49675]
[1756040002484,1.0129,4754.7,4754.6,1.72085]
[1756040002689,1.3567,4754.7,4754.6,1.72085]
[1756040007080,1.3567,4754.7,4754.6,1.49675]
[1756040007976,1.3567,4754.7,4754.6,1.72085]
[1756040008981,1.3567,4754.7,4754.6,1.49675]
[1756040009184,0.5795,4754.6,4754.5,0.42075]
[1756040009385,1.3567,4754.6,4754.5,0.42075]
[1756040009586,0.8158,4754.5,4754.4,0.42076]
[1756040009787,1.3567,4754.5,4754.4,0.42076]
[1756040010583,0.5409,4754.2,4754.1,0.42078]
[1756040010789,1.3567,4753.9,4753.8,0.42082]
[1756040011192,1.3567,4753.9,4753.8,1.15752]
[1756040012489,1.3567,4753.9,4753.8,0.42082]
[1756040013088,1.0524,4753.8,4753.7,0.42082]
[1756040013391,1.3567,4753.8,4753.7,0.42082]
[1756040015076,0.5409,4753.3,4753.2,0.75547]
[1756040015283,1.3567,4753.3,4753.2,0.92637]
[1756040015485,1.3567,4753.3,4753.2,1.15757]
[1756040015686,1.3567,4753.3,4753.2,1.72037]
[1756040017795,0.472,4753.3,4753.2,1.72037]
[1756040019494,1.1288,4753.3,4753.2,1.72037]
[1756040019690,0.7774,4753.3,4753.2,1.72037]
[1756040020694,1.3684,4753.3,4753.2,1.72037]
[1756040023199,0.7778,4753.9,4753.8,1.27472]
[1756040023699,1.3703,4753.9,4753.8,1.09082]
[1756040023905,1.3703,4753.9,4753.8,0.93352]
[1756040026904,1.3703,4753.9,4753.8,1.49192]
[1756040027098,1.3703,4753.9,4753.8,1.72062]
[1756040033406,1.3703,4753.9,4753.8,1.49192]
[1756040033602,1.3703,4753.9,4753.8,1.30802]
[1756040033803,1.3703,4753.9,4753.8,1.15072]
[1756040037607,1.3703,4753.9,4753.8,1.72062]
[1756040038103,1.3703,4753.9,4753.8,0.99432]
[1756040038306,1.89239291,4753.9,4753.8,0.42082]
[1756040040302,1.89239291,4753.9,4753.8,1.72062]
[1756040040505,1.54099291,4753.9,4753.8,1.72062]
[1756040041105,1.89239291,4753.9,4753.8,1.72062]
[1756040041304,1.30139291,4753.9,4753.8,1.72062]
[1756040041506,0.52209291,4753.9,4753.8,1.72062]
[1756040041896,0.545,4754.3,4754.2,0.95168]
[1756040042107,0.545,4754.3,4754.2,1.72058]
[1756040042108,1.0675899,4754.3,4754.2,1.72058]
[1756040042403,1.6517899,4754.3,4754.2,1.72058]
[1756040042711,1.8928899,4754.3,4754.2,1.30798]
[1756040042904,1.8928899,4754.3,4754.2,1.15068]
[1756040043104,1.8928899,4754.3,4754.2,0.42078]
[1756040043799,0.8253,4754.2,4753.5,0.4126]
[1756040044006,1.3703,4753.7,4753.6,1.33909489]
[1756040044310,1.3703,4753.7,4753.6,1.68029489]
[1756040044607,1.3703,4753.7,4753.6,1.90899489]
[1756040045700,1.3703,4753.7,4753.6,1.9089936]
[1756040049607,0.8779,4754.0,4753.9,0.96271]
[1756040049811,0.8779,4754.0,4753.9,1.73691]
[1756040050109,1.3475,4754.0,4753.9,1.73691]
[1756040052005,0.4696,4754.4,4754.3,1.32447]
[1756040052209,0.4696,4754.7,4754.6,1.73684]
[1756040052805,1.3475,4755.0,4754.9,1.73682]
[1756040053112,0.5749,4755.3,4755.2,0.80869]
[1756040053314,0.4696,4755.3,4755.2,1.73679]
[1756040053704,1.1104,4755.3,4755.2,1.73679]
[1756040054407,0.2307,4755.3,4755.2,1.73679]
[1756040054613,0.336,4755.6,4754.8,1.05182]
[1756040054614,0.4696,4755.6,4755.5,1.73677]
[1756040054813,0.4696,4755.6,4755.5,2.02013693]
[1756040055213,1.3475,4755.9,4755.8,0.96254]
[1756040055416,1.3475,4755.9,4755.8,2.02010693]
[1756040055614,1.3475,4755.9,4755.8,1.73674]
[1756040055804,1.3475,4755.9,4755.8,2.01991329]
[1756040056210,1.3475,4755.9,4755.8,2.0199089]
[1756040059018,0.6278,4755.9,4755.8,2.01955777]
[1756040059319,1.3475,4756.2,4756.1,1.73671]
[1756040059822,1.3475,4756.2,4756.1,2.01938029]
[1756040060017,1.3475,4756.2,4756.1,1.79138029]
[1756040060221,1.3475,4756.2,4756.1,1.60698029]
[1756040060420,1.3475,4756.2,4756.1,1.32431]
[1756040060720,1.3475,4756.2,4756.1,1.16391]
[1756040060917,1.3475,4756.2,4755.8,0.5462]
[1756040061121,1.3475,4755.9,4755.8,0.3618]
[1756040062832,0.5419,4755.9,4755.1,0.3618]
[1756040063033,1.3475,4755.2,4755.1,1.3161]
[1756040063333,1.3475,4755.2,4755.1,1.59860267]
[1756040063832,1.3475,4755.2,4755.1,2.01930267]
[1756040065733,1.3475,4755.8,4755.7,1.73675]